Workbook

Sheet 封面
A2: 2023年部门预算公开表
A7: （公章）
A9: 报送日期： 年 月 日
A11: 单位负责人签章： 财务负责人签章： 制表人签章：

Sheet 表一
B1: 表一
B3: 财政拨款收支总表
H4: 单位：万元
B5: 收入 | D5: 支出
B6: 项目 | C6: 预算数 | D6: 项目 | E6: 合计 | F6: 一般公共预算 | G6: 政府性基金预算 | H6: 国有资本经营预算
B7: 一、本年收入 | C7: 2,359.72 | D7: 一、本年支出 | E7: 3,066.49 | F7: 2,991.42 | G7: 75.07
B8: 一般公共预算资金 | C8: 2,359.72 | D8: 一般公共服务支出 | E8: 652.36 | F8: 652.36
B9: 政府性基金预算资金 | D9: 文化旅游体育与传媒支出 | E9: 61.43 | F9: 61.43
B10: 国有资本经营预算资金 | D10: 社会保障和就业支出 | E10: 383.12 | F10: 383.12
D11: 卫生健康支出 | E11: 78.42 | F11: 78.42
D12: 城乡社区支出 | E12: 236.86 | F12: 224.18 | G12: 12.68
D13: 农林水支出 | E13: 1,508.91 | F13: 1,508.91
D14: 住房保障支出 | E14: 83.00 | F14: 83.00
D15: 其他支出 | E15: 62.39 | G15: 62.39
B17: 二、上年结转 | C17: 706.77 | D17: 二、结转下年
B18: 一般公共预算拨款 | C18: 631.70
B19: 政府性基金预算拨款 | C19: 75.07
B20: 国有资本经营收入
B22: 收入合计 | C22: 3,066.49 | D22: 支出合计 | E22: 3,066.49 | F22: 2,991.42 | G22: 75.07

Sheet 表二
B1: 表二
B2: 一般公共预算财政拨款支出预算表
F5: 单位：万元
B6: 功能分类科目 | D6: 2023年预算数
B7: 科目编码 | C7: 科目名称 | D7: 总计 | E7: 基本支出 | F7: 项目支出
B8: 合计 | D8: =D9+D17+D20+D32+D40+D45+D61 -> 2,991.42 | E8: =E9+E17+E20+E32+E40+E45+E61 -> 1,593.16 | F8: =F9+F17+F20+F32+F40+F45+F61 -> 1,398.26
B9: 201 | C9: 一般公共服务支出 | D9: =D10+D12+D15 -> 652.36 | E9: =E12 -> 526.38 | F9: =F10+F12+F15 -> 125.98
B10: 20101 | C10: 人大事务 | D10: =D11 -> 10.35 | F10: =F11 -> 10.35
B11: 2010108 | C11: 代表工作 | D11: 10.35 | F11: 10.35
B12: 20103 | C12: 政府办公厅（室）及相关机构事务 | D12: =D13+D14 -> 623.19 | E12: 526.38 | F12: =F13+F14 -> 96.81
B13: 2010301 | C13: 行政运行 | D13: 526.38 | E13: 526.38
B14: 2010302 | C14: 一般行政管理事务 | D14: 96.81 | F14: 96.81
B15: 20132 | C15: 组织事务 | D15: =D16 -> 18.82 | F15: =F16 -> 18.82
B16: 2013202 | C16: 一般行政管理事务 | D16: 18.82 | F16: 18.82
B17: 207 | C17: 文化旅游体育与传媒支出 | D17: =D18 -> 61.43 | E17: =E18 -> 61.43
B18: 20701 | C18: 文化和旅游 | D18: =D19 -> 61.43 | E18: =E19 -> 61.43
B19: 2070109 | C19: 群众文化 | D19: 61.43 | E19: 61.43
B20: 208 | C20: 社会保障和就业支出 | D20: =D21+D23+D27+D30 -> 383.12 | E20: =E21+E23+E27+E30 -> 335.96 | F20: =F21+F23+F27+F30 -> 47.16
B21: 20801 | C21: 人力资源和社会保障管理事务 | D21: =D22 -> 82.30 | E21: =E22 -> 82.30
B22: 2080104 | C22: 综合业务管理 | D22: 82.30 | E22: 82.30
B23: 20805 | C23: 行政事业单位养老支出 | D23: =D24+D25+D26 -> 223.41 | E23: =E24+E25+E26 -> 217.41 | F23: =F24+F25+F26 -> 6.00
B24: 2080505 | C24: 机关事业单位基本养老保险缴费支出 | D24: 104.41 | E24: 104.41
B25: 2080506 | C25: 机关事业单位职业年金缴费支出 | D25: 52.21 | E25: 52.21
B26: 2080599 | C26: 其他行政事业单位养老支出 | D26: 66.79 | E26: 60.79 | F26: 6.00
B27: 20828 | C27: 退役军人管理事务 | D27: =D28+D29 -> 36.51 | E27: =E29 -> 36.25 | F27: =F28+F29 -> 0.26
B28: 2082804 | C28: 拥军优属 | D28: 0.26 | F28: 0.26
B29: 2082850 | C29: 事业运行 | D29: 36.25 | E29: 36.25
B30: 20899 | C30: 其他社会保障和就业支出 | D30: =D31 -> 40.90 | F30: =F31 -> 40.90
B31: 2089999 | C31: 其他社会保障和就业支出 | D31: 40.90 | F31: 40.90
B32: 210 | C32: 卫生健康支出 | D32: =D33+D35 -> 78.42 | E32: =E35 -> 64.55 | F32: =F33 -> 13.87
B33: 21004 | C33: 公共卫生 | D33: =D34 -> 13.87 | F33: =F34 -> 13.87
B34: 2100410 | C34: 突发公共卫生事件应急处理 | D34: 13.87 | F34: 13.87
B35: 21011 | C35: 行政事业单位医疗 | D35: =D36+D37+D38+D39 -> 64.55 | E35: =E36+E37+E38+E39 -> 64.55
B36: 2101101 | C36: 行政单位医疗 | D36: 22.36 | E36: 22.36
B37: 2101102 | C37: 事业单位医疗 | D37: 31.46 | E37: 31.46
B38: 2101103 | C38: 公务员医疗补助 | D38: 4.49 | E38: 4.49
B39: 2101199 | C39: 其他行政事业单位医疗支出 | D39: 6.24 | E39: 6.24
B40: 212 | C40: 城乡社区支出 | D40: =D41+D43 -> 224.18 | E40: =E41+E43 -> 127.94 | F40: =F41+F43 -> 96.24
B41: 21201 | C41: 城乡社区管理事务 | D41: =D42 -> 127.94 | E41: =E42 -> 127.94
B42: 2120199 | C42: 其他城乡社区管理事务支出 | D42: 127.94 | E42: 127.94
B43: 21205 | C43: 城乡社区环境卫生 | D43: =D44 -> 96.24 | F43: 96.24
B44: 2120501 | C44: 城乡社区环境卫生 | D44: 96.24 | F44: 96.24
B45: 213 | C45: 农林水支出 | D45: =D46+D51+D53+D58 -> 1,508.91 | E45: =E46+E51+E53+E58 -> 393.90 | F45: =F46+F51+F53+F58 -> 1,115.01
B46: 21301 | C46: 农业农村 | D46: =D47+D48+D49+D50 -> 418.36 | E46: 393.90 | F46: =F47+F48+F49+F50 -> 24.46
B47: 2130104 | C47: 事业运行 | D47: 346.11 | E47: 346.11
B48: 2130108 | C48: 病虫害控制 | D48: 21.50 | F48: 21.50
B49: 2130124 | C49: 农村合作经济 | D49: 47.79 | E49: 47.79
B50: 2130135 | C50: 农业资源保护修复与利用 | D50: 2.96 | F50: 2.96
B51: 21302 | C51: 林业和草原 | D51: =D52 -> 18.00 | F51: =F52 -> 18.00
B52: 2130205 | C52: 森林资源培育 | D52: 18.00 | F52: 18.00
B53: 21303 | C53: 水利 | D53: =D54+D55+D56+D57 -> 223.65 | F53: =F54+F55+F56+F57 -> 223.65
B54: 2130314 | C54: 防汛 | D54: 30.00 | F54: 30.00
B55: 2130315 | C55: 抗旱 | D55: 171.10 | F55: 171.10
B56: 2130316 | C56: 农村水利 | D56: 12.90 | F56: 12.90
B57: 2130335 | C57: 农村供水 | D57: 9.65 | F57: 9.65
B58: 21307 | C58: 农村综合改革 | D58: =D59+D60 -> 848.90 | F58: =F59+F60 -> 848.90
B59: 2130701 | C59: 对村级公益事业建设的补助 | D59: 150.00 | F59: 150.00
B60: 2130705 | C60: 对村民委员会和村党支部的补助 | D60: 698.90 | F60: 698.90
B61: 221 | C61: 住房保障支出 | D61: =D62 -> 83.00 | E61: =E62 -> 83.00
B62: 22102 | C62: 住房改革支出 | D62: =D63 -> 83.00 | E62: =E63 -> 83.00
B63: 2210201 | C63: 住房公积金 | D63: 83.00 | E63: 83.00

Sheet 表三
B1: 表三
B2: 一般公共预算财政拨款基本支出预算表
F5: 单位：万元
B6: 经济分类科目 | D6: 2023年基本支出
B7: 科目编码 | C7: 科目名称 | D7: 总计 | E7: 人员经费 | F7: 日常公用经费
B8: 合计 | D8: =D9+D21+D40+D44 -> 1,593.16 | E8: =E9+E21+E40+E44 -> 1,290.51 | F8: =F9+F21+F40+F44 -> 302.65
B9: 301 | C9: 工资福利支出 | D9: =SUM(D10:D20) -> 1,233.00 | E9: =SUM(E10:E20) -> 1,233.00
B10: 30101 | C10: 基本工资 | D10: 263.88 | E10: 263.88
B11: 30102 | C11: 津贴补贴 | D11: 104.04 | E11: 104.04
B12: 30103 | C12: 奖金 | D12: 162.57 | E12: 162.57
B13: 30107 | C13: 绩效工资 | D13: 352.49 | E13: 352.49
B14: 30108 | C14: 机关事业单位基本养老保险缴费 | D14: 104.41 | E14: 104.41
B15: 30109 | C15: 职业年金缴费 | D15: 52.21 | E15: 52.21
B16: 30110 | C16: 职工基本医疗保险缴费 | D16: 53.82 | E16: 53.82
B17: 30112 | C17: 其他社会保障缴费 | D17: 14.36 | E17: 14.36
B18: 30113 | C18: 住房公积金 | D18: 83.00 | E18: 83.00
B19: 30114 | C19: 医疗费 | D19: 10.72 | E19: 10.72
B20: 30199 | C20: 其他工资福利支出 | D20: 31.50 | E20: 31.50
B21: 302 | C21: 商品和服务支出 | D21: =SUM(D22:D39) -> 297.65 | F21: =SUM(F22:F39) -> 297.65
B22: 30201 | C22: 办公费 | D22: 33.90 | F22: 33.90
B23: 30202 | C23: 印刷费 | D23: 3.50 | F23: 3.50
B24: 30203 | C24: 咨询费 | D24: 0.50 | F24: 0.50
B25: 30205 | C25: 水费 | D25: 5.30 | F25: 5.30
B26: 30206 | C26: 电费 | D26: 20.80 | F26: 20.80
B27: 30207 | C27: 邮电费 | D27: 12.92 | F27: 12.92
B28: 30211 | C28: 差旅费 | D28: 6.50 | F28: 6.50
B29: 30213 | C29: 维修（护）费 | D29: 5.20 | F29: 5.20
B30: 30215 | C30: 会议费 | D30: 13.60 | F30: 13.60
B31: 30216 | C31: 培训费 | D31: 15.14 | F31: 15.14
B32: 30217 | C32: 公务接待费 | D32: 20.00 | F32: 20.00
B33: 30226 | C33: 劳务费 | D33: 10.40 | F33: 10.40
B34: 30227 | C34: 委托业务费 | D34: 5.50 | F34: 5.50
B35: 30228 | C35: 工会经费 | D35: 50.58 | F35: 50.58
B36: 30229 | C36: 福利费 | D36: 7.92 | F36: 7.92
B37: 30231 | C37: 公务用车运行维护费 | D37: 52.00 | F37: 52.00
B38: 30239 | C38: 其他交通费用 | D38: 28.00 | F38: 28.00
B39: 30299 | C39: 其他商品和服务支出 | D39: 5.89 | F39: 5.89
B40: 303 | C40: 对个人和家庭的补助 | D40: =SUM(D41:D43) -> 57.51 | E40: =SUM(E41:E43) -> 57.51
B41: 30307 | C41: 医疗费补助 | D41: 4.60 | E41: 4.60
B42: 30309 | C42: 奖励金 | D42: 0.01 | E42: 0.01
B43: 30399 | C43: 其他对个人和家庭的补助 | D43: 52.90 | E43: 52.90
B44: 310 | C44: 资本性支出 | D44: =SUM(D45:D45) -> 5.00 | F44: =SUM(F45:F45) -> 5.00
B45: 31002 | C45: 办公设备购置 | D45: 5.00 | F45: 5.00

Sheet 表四
B1: 表四
B2: 一般公共预算“三公”经费支出表
G5: 单位：万元
B6: 2023年预算数
B7: 合计 | C7: 因公出国（境）费 | D7: 公务用车购置及运行费 | G7: 公务接待费
D8: 小计 | E8: 公务用车购置费 | F8: 公务用车运行费
B9: 72.00 | D9: 52.00 | F9: 52.00 | G9: 20.00

Sheet 表五
B1: 表五
B2: 政府性基金预算支出表
F5: 单位：万元
B6: 科目编码 | C6: 科目名称 | D6: 本年政府性基金预算财政拨款支出
D7: 总计 | E7: 基本支出 | F7: 项目支出
B8: 合计 | D8: 75.07 | F8: 75.07
B9: 212 | C9: 城乡社区支出 | D9: 12.68 | F9: 12.68
B10: 21208 | C10: 国有土地使用权出让收入安排的支出 | D10: 12.68 | F10: 12.68
B11: 2120804 | C11: 农村基础设施建设支出 | D11: 2.68 | F11: 2.68
B12: 2120899 | C12: 其他国有土地使用权出让收入安排的支出 | D12: 10.00 | F12: 10.00
B13: 229 | C13: 其他支出 | D13: 62.39 | F13: 62.39
B14: 22960 | C14: 彩票公益金安排的支出 | D14: 62.39 | F14: 62.39
B15: 2296002 | C15: 用于社会福利的彩票公益金支出 | D15: 60.00 | F15: 60.00
B16: 2296099 | C16: 用于其他社会公益事业的彩票公益金支出 | D16: 2.39 | F16: 2.39

Sheet 表六
C1: 表六
C2: 部门收支总表
F5: 单位：万元
C6: 收入 | E6: 支出
C7: 项目 | D7: 预算数 | E7: 项目 | F7: 预算数
C8: 合计 | D8: 3,066.49 | E8: 合计 | F8: 3,066.49
B9: 11 | C9: 一般公共预算资金 | D9: 2,991.42 | E9: 一般公共服务支出 | F9: 652.36
B10: 12 | C10: 政府性基金预算资金 | D10: 75.07 | E10: 文化旅游体育与传媒支出 | F10: 61.43
C11: 国有资本经营预算资金 | E11: 社会保障和就业支出 | F11: 383.12
C12: 财政专户管理资金 | E12: 卫生健康支出 | F12: 78.42
C13: 事业收入资金 | E13: 城乡社区支出 | F13: 236.86
C14: 上级补助收入资金 | E14: 农林水支出 | F14: 1,508.91
C15: 附属单位上缴收入资金 | E15: 住房保障支出 | F15: 83.00
C16: 事业单位经营收入资金 | E16: 其他支出 | F16: 62.39
C17: 其他收入资金

Sheet 表七
B1: 表七
B2: 部门收入总表
M5: 单位：万元
B6: 科目 | D6: 总计 | E6: 一般公共预算拨款收入 | F6: 政府性基金预算拨款收入 | G6: 国有资本经营预算拨款收入 | H6: 财政专户管理资金收入 | I6: 事业收入 | J6: 上级补助收入 | K6: 附属单位上缴收入 | L6: 事业单位经营收入 | M6: 其他收入
B7: 科目编码 | C7: 科目名称
B8: 合计 | D8: =D9+D17+D20+D32+D40+D48+D64+D67 -> 3,066.49 | E8: =E9+E17+E20+E32+E40+E48+E64+E67 -> 2,991.42 | F8: =F9+F17+F20+F32+F40+F48+F64+F67 -> 75.07
B9: 201 | C9: 一般公共服务支出 | D9: =D10+D12+D15 -> 652.36 | E9: =E10+E12+E15 -> 652.36
B10: 20101 | C10: 人大事务 | D10: =D11 -> 10.35 | E10: 10.35
B11: 2010108 | C11: 代表工作 | D11: 10.35 | E11: 10.35
B12: 20103 | C12: 政府办公厅（室）及相关机构事务 | D12: =D13+D14 -> 623.19 | E12: =E13+E14 -> 623.19
B13: 2010301 | C13: 行政运行 | D13: 526.38 | E13: 526.38
B14: 2010302 | C14: 一般行政管理事务 | D14: 96.81 | E14: 96.81
B15: 20132 | C15: 组织事务 | D15: =D16 -> 18.82 | E15: =E16 -> 18.82
B16: 2013202 | C16: 一般行政管理事务 | D16: 18.82 | E16: 18.82
B17: 207 | C17: 文化旅游体育与传媒支出 | D17: =D18 -> 61.43 | E17: =E18 -> 61.43
B18: 20701 | C18: 文化和旅游 | D18: =D19 -> 61.43 | E18: 61.43
B19: 2070109 | C19: 群众文化 | D19: 61.43 | E19: 61.43
B20: 208 | C20: 社会保障和就业支出 | D20: =D21+D23+D27+D30 -> 383.12 | E20: =E21+E23+E27+E30 -> 383.12
B21: 20801 | C21: 人力资源和社会保障管理事务 | D21: =D22 -> 82.30 | E21: =E22 -> 82.30
B22: 2080104 | C22: 综合业务管理 | D22: 82.30 | E22: 82.30
B23: 20805 | C23: 行政事业单位养老支出 | D23: =D24+D25+D26 -> 223.41 | E23: =E24+E25+E26 -> 223.41
B24: 2080505 | C24: 机关事业单位基本养老保险缴费支出 | D24: 104.41 | E24: 104.41
B25: 2080506 | C25: 机关事业单位职业年金缴费支出 | D25: 52.21 | E25: 52.21
B26: 2080599 | C26: 其他行政事业单位养老支出 | D26: 66.79 | E26: 66.79
B27: 20828 | C27: 退役军人管理事务 | D27: =D28+D29 -> 36.51 | E27: =E28+E29 -> 36.51
B28: 2082804 | C28: 拥军优属 | D28: 0.26 | E28: 0.26
B29: 2082850 | C29: 事业运行 | D29: 36.25 | E29: 36.25
B30: 20899 | C30: 其他社会保障和就业支出 | D30: =D31 -> 40.90 | E30: =E31 -> 40.90
B31: 2089999 | C31: 其他社会保障和就业支出 | D31: 40.90 | E31: 40.90
B32: 210 | C32: 卫生健康支出 | D32: =D33+D35 -> 78.42 | E32: =E33+E35 -> 78.42
B33: 21004 | C33: 公共卫生 | D33: =D34 -> 13.87 | E33: 13.87
B34: 2100410 | C34: 突发公共卫生事件应急处理 | D34: 13.87 | E34: 13.87
B35: 21011 | C35: 行政事业单位医疗 | D35: =D36+D37+D38+D39 -> 64.55 | E35: =E36+E37+E38+E39 -> 64.55
B36: 2101101 | C36: 行政单位医疗 | D36: 22.36 | E36: 22.36
B37: 2101102 | C37: 事业单位医疗 | D37: 31.46 | E37: 31.46
B38: 2101103 | C38: 公务员医疗补助 | D38: 4.49 | E38: 4.49
B39: 2101199 | C39: 其他行政事业单位医疗支出 | D39: 6.24 | E39: 6.24
B40: 212 | C40: 城乡社区支出 | D40: =D41+D43+D45 -> 236.86 | E40: =E41+E43+E45 -> 224.18 | F40: =F41+F43+F45 -> 12.68
B41: 21201 | C41: 城乡社区管理事务 | D41: =D42 -> 127.94 | E41: 127.94
B42: 2120199 | C42: 其他城乡社区管理事务支出 | D42: 127.94 | E42: 127.94
B43: 21205 | C43: 城乡社区环境卫生 | D43: =D44 -> 96.24 | E43: 96.24
B44: 2120501 | C44: 城乡社区环境卫生 | D44: 96.24 | E44: 96.24
B45: 21208 | C45: 国有土地使用权出让收入安排的支出 | D45: =D46+D47 -> 12.68 | F45: =F46+F47 -> 12.68
B46: 2120804 | C46: 农村基础设施建设支出 | D46: 2.68 | F46: 2.68
B47: 2120899 | C47: 其他国有土地使用权出让收入安排的支出 | D47: 10.00 | F47: 10.00
B48: 213 | C48: 农林水支出 | D48: =D49+D54+D56+D61 -> 1,508.91 | E48: =E49+E54+E56+E61 -> 1,508.91
B49: 21301 | C49: 农业农村 | D49: =D50+D51+D52+D53 -> 418.36 | E49: 418.36
B50: 2130104 | C50: 事业运行 | D50: 346.11 | E50: 346.11
B51: 2130108 | C51: 病虫害控制 | D51: 21.50 | E51: 21.50
B52: 2130124 | C52: 农村合作经济 | D52: 47.79 | E52: 47.79
B53: 2130135 | C53: 农业资源保护修复与利用 | D53: 2.96 | E53: 2.96
B54: 21302 | C54: 林业和草原 | D54: =D55 -> 18.00 | E54: 18.00
B55: 2130205 | C55: 森林资源培育 | D55: 18.00 | E55: 18.00
B56: 21303 | C56: 水利 | D56: =D57+D58+D59+D60 -> 223.65 | E56: 223.65
B57: 2130314 | C57: 防汛 | D57: 30.00 | E57: 30.00
B58: 2130315 | C58: 抗旱 | D58: 171.10 | E58: 171.10
B59: 2130316 | C59: 农村水利 | D59: 12.90 | E59: 12.90
B60: 2130335 | C60: 农村供水 | D60: 9.65 | E60: 9.65
B61: 21307 | C61: 农村综合改革 | D61: =D62+D63 -> 848.90 | E61: 848.90
B62: 2130701 | C62: 对村级公益事业建设的补助 | D62: 150.00 | E62: 150.00
B63: 2130705 | C63: 对村民委员会和村党支部的补助 | D63: 698.90 | E63: 698.90
B64: 221 | C64: 住房保障支出 | D64: =D65 -> 83.00 | E64: =E65 -> 83.00
B65: 22102 | C65: 住房改革支出 | D65: =D66 -> 83.00 | E65: =E66 -> 83.00
B66: 2210201 | C66: 住房公积金 | D66: 83.00 | E66: 83.00
B67: 229 | C67: 其他支出 | D67: =D68 -> 62.39 | F67: 62.39
B68: 22960 | C68: 彩票公益金安排的支出 | D68: =D69+D70 -> 62.39 | F68: 62.39
B69: 2296002 | C69: 用于社会福利的彩票公益金支出 | D69: 60.00 | F69: 60.00
B70: 2296099 | C70: 用于其他社会公益事业的彩票公益金支出 | D70: 2.39 | F70: 2.39

Sheet 表八
B1: 表八
B2: 部门支出总表
F5: 单位：万元
B6: 科目编码 | C6: 科目名称 | D6: 总计 | E6: 基本支出 | F6: 项目支出
B7: 合计 | D7: =D8+D16+D19+D31+D39+D47+D63+D66 -> 3,066.49 | E7: =E8+E16+E19+E31+E39+E47+E63+E66 -> 1,593.16 | F7: =F8+F16+F19+F31+F39+F47+F63+F66 -> 1,473.33
B8: 201 | C8: 一般公共服务支出 | D8: =D9+D11+D14 -> 652.36 | E8: =E9+E11+E14 -> 526.38 | F8: 125.98
B9: 20101 | C9: 人大事务 | D9: =D10 -> 10.35 | F9: 10.35
B10: 2010108 | C10: 代表工作 | D10: 10.35 | F10: 10.35
B11: 20103 | C11: 政府办公厅（室）及相关机构事务 | D11: =D12+D13 -> 623.19 | E11: 526.38 | F11: 96.81
B12: 2010301 | C12: 行政运行 | D12: 526.38 | E12: 526.38
B13: 2010302 | C13: 一般行政管理事务 | D13: 96.81 | F13: 96.81
B14: 20132 | C14: 组织事务 | D14: =D15 -> 18.82 | F14: 18.82
B15: 2013202 | C15: 一般行政管理事务 | D15: 18.82 | F15: 18.82
B16: 207 | C16: 文化旅游体育与传媒支出 | D16: =D17 -> 61.43 | E16: 61.43
B17: 20701 | C17: 文化和旅游 | D17: =D18 -> 61.43 | E17: 61.43
B18: 2070109 | C18: 群众文化 | D18: 61.43 | E18: 61.43
B19: 208 | C19: 社会保障和就业支出 | D19: =D20+D22+D26+D29 -> 383.12 | E19: 335.96 | F19: 47.16
B20: 20801 | C20: 人力资源和社会保障管理事务 | D20: =D21 -> 82.30 | E20: 82.30
B21: 2080104 | C21: 综合业务管理 | D21: 82.30 | E21: 82.30
B22: 20805 | C22: 行政事业单位养老支出 | D22: =D23+D24+D25 -> 223.41 | E22: 217.41 | F22: 6.00
B23: 2080505 | C23: 机关事业单位基本养老保险缴费支出 | D23: 104.41 | E23: 104.41
B24: 2080506 | C24: 机关事业单位职业年金缴费支出 | D24: 52.21 | E24: 52.21
B25: 2080599 | C25: 其他行政事业单位养老支出 | D25: 66.79 | E25: 60.79 | F25: 6.00
B26: 20828 | C26: 退役军人管理事务 | D26: =D27+D28 -> 36.51 | E26: 36.25 | F26: 0.26
B27: 2082804 | C27: 拥军优属 | D27: 0.26 | F27: 0.26
B28: 2082850 | C28: 事业运行 | D28: 36.25 | E28: 36.25
B29: 20899 | C29: 其他社会保障和就业支出 | D29: =D30 -> 40.90 | F29: 40.90
B30: 2089999 | C30: 其他社会保障和就业支出 | D30: 40.90 | F30: 40.90
B31: 210 | C31: 卫生健康支出 | D31: =D32+D34 -> 78.42 | E31: =E32+E34 -> 64.55 | F31: 13.87
B32: 21004 | C32: 公共卫生 | D32: =D33 -> 13.87 | F32: 13.87
B33: 2100410 | C33: 突发公共卫生事件应急处理 | D33: 13.87 | F33: 13.87
B34: 21011 | C34: 行政事业单位医疗 | D34: =D35+D36+D37+D38 -> 64.55 | E34: 64.55
B35: 2101101 | C35: 行政单位医疗 | D35: 22.36 | E35: 22.36
B36: 2101102 | C36: 事业单位医疗 | D36: 31.46 | E36: 31.46
B37: 2101103 | C37: 公务员医疗补助 | D37: 4.49 | E37: 4.49
B38: 2101199 | C38: 其他行政事业单位医疗支出 | D38: 6.24 | E38: 6.24
B39: 212 | C39: 城乡社区支出 | D39: =D40+D42+D44 -> 236.86 | E39: =E40+E42+E44 -> 127.94 | F39: =F40+F42+F44 -> 108.92
B40: 21201 | C40: 城乡社区管理事务 | D40: 127.94 | E40: 127.94
B41: 2120199 | C41: 其他城乡社区管理事务支出 | D41: 127.94 | E41: 127.94
B42: 21205 | C42: 城乡社区环境卫生 | D42: 96.24 | F42: 96.24
B43: 2120501 | C43: 城乡社区环境卫生 | D43: 96.24 | F43: 96.24
B44: 21208 | C44: 国有土地使用权出让收入安排的支出 | D44: =D45+D46 -> 12.68 | F44: 12.68
B45: 2120804 | C45: 农村基础设施建设支出 | D45: 2.68 | F45: 2.68
B46: 2120899 | C46: 其他国有土地使用权出让收入安排的支出 | D46: 10.00 | F46: 10.00
B47: 213 | C47: 农林水支出 | D47: =D48+D53+D55+D60 -> 1,508.91 | E47: 393.90 | F47: 1,115.01
B48: 21301 | C48: 农业农村 | D48: 418.36 | E48: 393.90 | F48: 24.46
B49: 2130104 | C49: 事业运行 | D49: 346.11 | E49: 346.11
B50: 2130108 | C50: 病虫害控制 | D50: 21.50 | F50: 21.50
B51: 2130124 | C51: 农村合作经济 | D51: 47.79 | E51: 47.79
B52: 2130135 | C52: 农业资源保护修复与利用 | D52: 2.96 | F52: 2.96
B53: 21302 | C53: 林业和草原 | D53: 18.00 | F53: 18.00
B54: 2130205 | C54: 森林资源培育 | D54: 18.00 | F54: 18.00
B55: 21303 | C55: 水利 | D55: 223.65 | F55: 223.65
B56: 2130314 | C56: 防汛 | D56: 30.00 | F56: 30.00
B57: 2130315 | C57: 抗旱 | D57: 171.10 | F57: 171.10
B58: 2130316 | C58: 农村水利 | D58: 12.90 | F58: 12.90
B59: 2130335 | C59: 农村供水 | D59: 9.65 | F59: 9.65
B60: 21307 | C60: 农村综合改革 | D60: 848.90 | F60: 848.90
B61: 2130701 | C61: 对村级公益事业建设的补助 | D61: 150.00 | F61: 150.00
B62: 2130705 | C62: 对村民委员会和村党支部的补助 | D62: 698.90 | F62: 698.90
B63: 221 | C63: 住房保障支出 | D63: 83.00 | E63: 83.00
B64: 22102 | C64: 住房改革支出 | D64: 83.00 | E64: 83.00
B65: 2210201 | C65: 住房公积金 | D65: 83.00 | E65: 83.00
B66: 229 | C66: 其他支出 | D66: 62.39 | F66: 62.39
B67: 22960 | C67: 彩票公益金安排的支出 | D67: 62.39 | F67: 62.39
B68: 2296002 | C68: 用于社会福利的彩票公益金支出 | D68: 60.00 | F68: 60.00
B69: 2296099 | C69: 用于其他社会公益事业的彩票公益金支出 | D69: 2.39 | F69: 2.39

Sheet 表九
B1: 表九
B2: 政府采购预算明细表
M5: 单位：万元
B6: 项目编号 | C6: 项目 | D6: 总计 | E6: 一般公共预算拨款收入 | F6: 政府性基金预算拨款收入 | G6: 国有资本经营预算拨款收入 | H6: 财政专户管理资金收入 | I6: 事业收入 | J6: 上级补助收入 | K6: 附属单位上缴收入 | L6: 事业单位经营收入 | M6: 其他收入
B7: 合计

Sheet 表十
B1: 表十
B2: 部门（单位）整体绩效目标表
I5: 单位：万元
B6: 部门(单位)名称 | C6: 417-重庆市綦江区扶欢镇人民政府 | G6: 部门支出预算数 | H6: 2,359.72
B7: 当年整体绩效目标 | C7: （一）主要经济指标：2023年地区生产总值同比增长8%，规模以上工业总产值增长8%，社会消费品零售总额增长11%。（二）重点工作：1、坚持以发展为第一要务，加快激活产业振兴动能。狠 抓工业、农业、商贸“三大经济”，全面提升镇域经济综合实力。2、坚持以建管并重为主线，统筹推进城乡品质提升。以 创全国文明镇、国家卫生镇为抓手，持续推进美丽城乡建设管理。3、坚持以民生福祉为中心，不断提升群众幸福指数。坚持人民至上，聚焦群众急难愁盼、关心关切，脚踏实地为群众办 好事、解难事。
B8: 绩效指标 | C8: 一级指标 | D8: 二级指标 | E8: 三级指标 | F8: 指标权重 | G8: 计量单位 | H8: 指标性质 | I8: 指标值 | J8: 是否核心指标
C9: 效益指标 | D9: 经济效益指标 | E9: 地区生产总值增长率 | F9: 20 | G9: % | H9: ≥ | I9: 8 | J9: 否
C10: 效益指标 | D10: 经济效益指标 | E10: 规模以上工业总产值增长率 | F10: 20 | G10: % | H10: ≥ | I10: 8 | J10: 否
C11: 效益指标 | D11: 经济效益指标 | E11: 社会消费品零售总额增长率 | F11: 20 | G11: % | H11: ≥ | I11: 11 | J11: 否
C12: 成本指标 | D12: 经济成本指标 | E12: 预算执行率 | F12: 20 | G12: % | H12: ＝ | I12: 100 | J12: 否
C13: 满意度指标 | D13: 满意度指标 | E13: 辖区群众满意度 | F13: 20 | G13: % | H13: ≥ | I13: 90 | J13: 否

Sheet 表十一
B1: 表十一
B2: 2023年重点专项资金绩效目标表（一级项目）
B3: 编制单位： | G3: 单位：万元
B4: 专项资金名称 | F4: 业务主管部门
B5: 当年预算
B6: 项目概况
B7: 立项依据
B8: 当年绩效目标
B9: 绩效指标 | C9: 指标 | D9: 指标权重 | E9: 计量单位 | F9: 指标性质 | G9: 指标值

Sheet 表十二
B1: 表十二
B2: 2023年一般性项目绩效目标表（一级项目）
B3: 编制单位： | G3: 单位：万元
B4: 专项资金名称 | F4: 业务主管部门
B5: 当年预算
B6: 项目概况
B7: 立项依据
B8: 当年绩效目标
B9: 绩效指标 | C9: 指标 | D9: 指标权重 | E9: 计量单位 | F9: 指标性质 | G9: 指标值

Sheet 表十三
A1: 表十三
A2: 2023年项目支出绩效目标表
A3: 编制单位： | B3: 417001-重庆市綦江区扶欢镇人民政府（本级） | K3: 单位：万元
A4: 项目名称 | B4: 50011023T000003394972-保运转-非在编人员经费 | G4: 业务主管部门 | I4: 重庆市綦江区扶欢镇人民政府
A5: 预算执行率权重 | B5: 10 | G5: 项目分类 | I5: 一般性项目
A6: 当年预算（万元) | B6: 35.36 | G6: 本级安排（万元) | I6: 35.36
G7: 上级补助（万元)
A8: 项目概述 | B8: 非在编人员
A9: 立项依据 | B9: 年初预算
A10: 当年绩效目标 | B10: 保障2023年非在编人员运转经费
A11: 绩效指标 | B11: 一级指标 | C11: 二级指标 | D11: 三级指标 | F11: 指标权重 | H11: 计量单位 | J11: 指标性质 | L11: 指标值 | M11: 是否核心指标
B12: 产出指标 | C12: 时效指标 | D12: 资金及时率 | F12: 40 | H12: % | J12: ≥ | L12: 90 | M12: 否
B13: 效益指标 | C13: 社会效益指标 | D13: 临聘人员考勤率 | F13: 40 | H13: % | J13: ≥ | L13: 90 | M13: 否
B14: 满意度指标 | C14: 服务对象满意度指标 | D14: 对象满意度 | F14: 10 | H14: % | J14: ≥ | L14: 90 | M14: 否
A15: 2023年项目支出绩效目标表
A16: 编制单位： | B16: 417001-重庆市綦江区扶欢镇人民政府（本级） | K16: 单位：万元
A17: 项目名称 | B17: 50011023T000003394991-保运转-镇人大代表活动费 | G17: 业务主管部门 | I17: 重庆市綦江区扶欢镇人民政府
A18: 预算执行率权重 | B18: 10 | G18: 项目分类 | I18: 一般性项目
A19: 当年预算（万元) | B19: 10.35 | G19: 本级安排（万元) | I19: 10.35
G20: 上级补助（万元)
A21: 项目概述 | B21: 镇人大代表活动费
A22: 立项依据 | B22: 年初预算
A23: 当年绩效目标 | B23: 保障2023年镇人大代表活动费
A24: 绩效指标 | B24: 一级指标 | C24: 二级指标 | D24: 三级指标 | F24: 指标权重 | H24: 计量单位 | J24: 指标性质 | L24: 指标值 | M24: 是否核心指标
B25: 产出指标 | C25: 时效指标 | D25: 资金及时率 | F25: 40 | H25: % | J25: ≥ | L25: 90 | M25: 否
B26: 满意度指标 | C26: 服务对象满意度指标 | D26: 对象满意度 | F26: 10 | H26: % | J26: ≥ | L26: 90 | M26: 否
B27: 效益指标 | C27: 社会效益指标 | D27: 镇人大活动次数 | F27: 40 | H27: 次 | J27: ≥ | L27: 4 | M27: 否
A28: 2023年项目支出绩效目标表
A29: 编制单位： | B29: 417001-重庆市綦江区扶欢镇人民政府（本级） | K29: 单位：万元
A30: 项目名称 | B30: 50011023T000003395003-保运转-退休人员政策 | G30: 业务主管部门 | I30: 重庆市綦江区扶欢镇人民政府
A31: 预算执行率权重 | B31: 10 | G31: 项目分类 | I31: 一般性项目
A32: 当年预算（万元) | B32: 6.00 | G32: 本级安排（万元) | I32: 6.00
G33: 上级补助（万元)
A34: 项目概述 | B34: 退休人员慰问
A35: 立项依据 | B35: 年初预算
A36: 当年绩效目标 | B36: 保障2023年退休人员慰问
A37: 绩效指标 | B37: 一级指标 | C37: 二级指标 | D37: 三级指标 | F37: 指标权重 | H37: 计量单位 | J37: 指标性质 | L37: 指标值 | M37: 是否核心指标
B38: 产出指标 | C38: 时效指标 | D38: 资金及时率 | F38: 40 | H38: % | J38: ≥ | L38: 90 | M38: 否
B39: 效益指标 | C39: 社会效益指标 | D39: 慰问覆盖率 | F39: 40 | H39: % | J39: ≥ | L39: 100 | M39: 否
B40: 满意度指标 | C40: 服务对象满意度指标 | D40: 对象满意度 | F40: 10 | H40: % | J40: ≥ | L40: 80 | M40: 否
A41: 2023年项目支出绩效目标表
A42: 编制单位： | B42: 417001-重庆市綦江区扶欢镇人民政府（本级） | K42: 单位：万元
A43: 项目名称 | B43: 50011023T000003395018-基层治理-专职干部误工补贴 | G43: 业务主管部门 | I43: 重庆市綦江区扶欢镇人民政府
A44: 预算执行率权重 | B44: 10 | G44: 项目分类 | I44: 一般性项目
A45: 当年预算（万元) | B45: 297.07 | G45: 本级安排（万元) | I45: 297.07
G46: 上级补助（万元)
A47: 项目概述 | B47: 村居专职干部误工补贴
A48: 立项依据 | B48: 年初预算
A49: 当年绩效目标 | B49: 保障2023年专职干部误工补贴
A50: 绩效指标 | B50: 一级指标 | C50: 二级指标 | D50: 三级指标 | F50: 指标权重 | H50: 计量单位 | J50: 指标性质 | L50: 指标值 | M50: 是否核心指标
B51: 效益指标 | C51: 经济效益指标 | D51: 专职干部人数 | F51: 40 | H51: 人 | J51: ≥ | L51: 81 | M51: 否
B52: 满意度指标 | C52: 服务对象满意度指标 | D52: 对象满意度 | F52: 10 | H52: % | J52: ≥ | L52: 80 | M52: 否
B53: 产出指标 | C53: 时效指标 | D53: 资金及时率 | F53: 40 | H53: % | J53: ≥ | L53: 90 | M53: 否
A54: 2023年项目支出绩效目标表
A55: 编制单位： | B55: 417001-重庆市綦江区扶欢镇人民政府（本级） | K55: 单位：万元
A56: 项目名称 | B56: 50011023T000003395024-基层治理-离任村居干部补助 | G56: 业务主管部门 | I56: 重庆市綦江区扶欢镇人民政府
A57: 预算执行率权重 | B57: 10 | G57: 项目分类 | I57: 一般性项目
A58: 当年预算（万元) | B58: 15.43 | G58: 本级安排（万元) | I58: 15.43
G59: 上级补助（万元)
A60: 项目概述 | B60: 离任村居干部补助
A61: 立项依据 | B61: 年初预算
A62: 当年绩效目标 | B62: 保障2023年离任村居干部补助
A63: 绩效指标 | B63: 一级指标 | C63: 二级指标 | D63: 三级指标 | F63: 指标权重 | H63: 计量单位 | J63: 指标性质 | L63: 指标值 | M63: 是否核心指标
B64: 产出指标 | C64: 时效指标 | D64: 资金及时率 | F64: 40 | H64: % | J64: ≥ | L64: 90 | M64: 否
B65: 效益指标 | C65: 社会效益指标 | D65: 离任村居干部覆盖率 | F65: 40 | H65: % | J65: ≥ | L65: 100 | M65: 否
B66: 满意度指标 | C66: 服务对象满意度指标 | D66: 对象满意度 | F66: 10 | H66: % | J66: ≥ | L66: 80 | M66: 否
A67: 2023年项目支出绩效目标表
A68: 编制单位： | B68: 417001-重庆市綦江区扶欢镇人民政府（本级） | K68: 单位：万元
A69: 项目名称 | B69: 50011023T000003395036-基层治理-村办公经费 | G69: 业务主管部门 | I69: 重庆市綦江区扶欢镇人民政府
A70: 预算执行率权重 | B70: 10 | G70: 项目分类 | I70: 一般性项目
A71: 当年预算（万元) | B71: 33.30 | G71: 本级安排（万元) | I71: 33.30
G72: 上级补助（万元)
A73: 项目概述 | B73: 村办公经费
A74: 立项依据 | B74: 年初预算
A75: 当年绩效目标 | B75: 保障2023年村办公经费
A76: 绩效指标 | B76: 一级指标 | C76: 二级指标 | D76: 三级指标 | F76: 指标权重 | H76: 计量单位 | J76: 指标性质 | L76: 指标值 | M76: 是否核心指标
B77: 效益指标 | C77: 社会效益指标 | D77: 村居办公效率 | F77: 40 | H77: % | J77: ≥ | L77: 80 | M77: 否
B78: 产出指标 | C78: 时效指标 | D78: 资金及时率 | F78: 40 | H78: % | J78: ≥ | L78: 90 | M78: 否
B79: 满意度指标 | C79: 服务对象满意度指标 | D79: 对象满意度 | F79: 10 | H79: % | J79: ≥ | L79: 80 | M79: 否
A80: 2023年项目支出绩效目标表
A81: 编制单位： | B81: 417001-重庆市綦江区扶欢镇人民政府（本级） | K81: 单位：万元
A82: 项目名称 | B82: 50011023T000003395039-基层治理-村居相关其他经费 | G82: 业务主管部门 | I82: 重庆市綦江区扶欢镇人民政府
A83: 预算执行率权重 | B83: 10 | G83: 项目分类 | I83: 一般性项目
A84: 当年预算（万元) | B84: 105.10 | G84: 本级安排（万元) | I84: 105.10
G85: 上级补助（万元)
A86: 项目概述 | B86: 村居小组长补贴、闲委员补贴、工青妇兵残、村干部意外伤害险、村居干部养老保险补助、监察监督纪检三员合一。
A87: 立项依据 | B87: 年初预算
A88: 当年绩效目标 | B88: 完成2023年村居相关其他任务
A89: 绩效指标 | B89: 一级指标 | C89: 二级指标 | D89: 三级指标 | F89: 指标权重 | H89: 计量单位 | J89: 指标性质 | L89: 指标值 | M89: 是否核心指标
B90: 产出指标 | C90: 时效指标 | D90: 资金及时率 | F90: 40 | H90: % | J90: ≥ | L90: 90 | M90: 否
B91: 效益指标 | C91: 社会效益指标 | D91: 资金覆盖率 | F91: 40 | H91: % | J91: ≥ | L91: 90 | M91: 否
B92: 满意度指标 | C92: 服务对象满意度指标 | D92: 对象满意度 | F92: 10 | H92: % | J92: ≥ | L92: 90 | M92: 否
A93: 2023年项目支出绩效目标表
A94: 编制单位： | B94: 417001-重庆市綦江区扶欢镇人民政府（本级） | K94: 单位：万元
A95: 项目名称 | B95: 50011023T000003395054-基层党建-机关党员活动费 | G95: 业务主管部门 | I95: 重庆市綦江区扶欢镇人民政府
A96: 预算执行率权重 | B96: 10 | G96: 项目分类 | I96: 一般性项目
A97: 当年预算（万元) | B97: 10.82 | G97: 本级安排（万元) | I97: 10.82
G98: 上级补助（万元)
A99: 项目概述 | B99: 机关党员活动费
A100: 立项依据 | B100: 年初预算
A101: 当年绩效目标 | B101: 完成2023年机关党员活动任务
A102: 绩效指标 | B102: 一级指标 | C102: 二级指标 | D102: 三级指标 | F102: 指标权重 | H102: 计量单位 | J102: 指标性质 | L102: 指标值 | M102: 是否核心指标
B103: 产出指标 | C103: 时效指标 | D103: 资金及时率 | F103: 40 | H103: % | J103: ≥ | L103: 90 | M103: 否
B104: 效益指标 | C104: 社会效益指标 | D104: 党员活动参与率 | F104: 40 | H104: % | J104: ≥ | L104: 90 | M104: 否
B105: 满意度指标 | C105: 服务对象满意度指标 | D105: 参与人员满意度 | F105: 10 | H105: % | J105: ≥ | L105: 80 | M105: 否
A106: 2023年项目支出绩效目标表
A107: 编制单位： | B107: 417001-重庆市綦江区扶欢镇人民政府（本级） | K107: 单位：万元
A108: 项目名称 | B108: 50011023T000003395060-基层党建-基层党组织经费 | G108: 业务主管部门 | I108: 重庆市綦江区扶欢镇人民政府
A109: 预算执行率权重 | B109: 10 | G109: 项目分类 | I109: 一般性项目
A110: 当年预算（万元) | B110: 8.37 | G110: 本级安排（万元) | I110: 8.37
G111: 上级补助（万元)
A112: 项目概述 | B112: 基层党组织经费
A113: 立项依据 | B113: 年初预算
A114: 当年绩效目标 | B114: 保障2023年基层党组织经费
A115: 绩效指标 | B115: 一级指标 | C115: 二级指标 | D115: 三级指标 | F115: 指标权重 | H115: 计量单位 | J115: 指标性质 | L115: 指标值 | M115: 是否核心指标
B116: 效益指标 | C116: 社会效益指标 | D116: 党建工作合格率 | F116: 40 | H116: % | J116: ≥ | L116: 80 | M116: 否
B117: 满意度指标 | C117: 服务对象满意度指标 | D117: 对象满意度 | F117: 10 | H117: % | J117: ≥ | L117: 80 | M117: 否
B118: 产出指标 | C118: 时效指标 | D118: 资金及时率 | F118: 40 | H118: % | J118: ≥ | L118: 90 | M118: 否
A119: 2023年项目支出绩效目标表
A120: 编制单位： | B120: 417001-重庆市綦江区扶欢镇人民政府（本级） | K120: 单位：万元
A121: 项目名称 | B121: 50011023T000003395068-基层党建-老党员生活补贴 | G121: 业务主管部门 | I121: 重庆市綦江区扶欢镇人民政府
A122: 预算执行率权重 | B122: 10 | G122: 项目分类 | I122: 一般性项目
A123: 当年预算（万元) | B123: 20.91 | G123: 本级安排（万元) | I123: 20.91
G124: 上级补助（万元)
A125: 项目概述 | B125: 老党员生活补贴
A126: 立项依据 | B126: 年初预算
A127: 当年绩效目标 | B127: 保障2023年老党员生活补贴
A128: 绩效指标 | B128: 一级指标 | C128: 二级指标 | D128: 三级指标 | F128: 指标权重 | H128: 计量单位 | J128: 指标性质 | L128: 指标值 | M128: 是否核心指标
B129: 效益指标 | C129: 社会效益指标 | D129: 老党员覆盖率 | F129: 40 | H129: % | J129: ≥ | L129: 100 | M129: 否
B130: 产出指标 | C130: 时效指标 | D130: 资金及时率 | F130: 40 | H130: % | J130: ≥ | L130: 90 | M130: 否
B131: 满意度指标 | C131: 服务对象满意度指标 | D131: 对象满意度 | F131: 10 | H131: % | J131: ≥ | L131: 90 | M131: 否
A132: 2023年项目支出绩效目标表
A133: 编制单位： | B133: 417001-重庆市綦江区扶欢镇人民政府（本级） | K133: 单位：万元
A134: 项目名称 | B134: 50011023T000003395089-社会服务-敬老院管理运行经费 | G134: 业务主管部门 | I134: 重庆市綦江区扶欢镇人民政府
A135: 预算执行率权重 | B135: 10 | G135: 项目分类 | I135: 一般性项目
A136: 当年预算（万元) | B136: 3.90 | G136: 本级安排（万元) | I136: 3.90
G137: 上级补助（万元)
A138: 项目概述 | B138: 敬老院管理运行经费
A139: 立项依据 | B139: 年初预算
A140: 当年绩效目标 | B140: 完成2023你那敬老院管理运行工作
A141: 绩效指标 | B141: 一级指标 | C141: 二级指标 | D141: 三级指标 | F141: 指标权重 | H141: 计量单位 | J141: 指标性质 | L141: 指标值 | M141: 是否核心指标
B142: 产出指标 | C142: 时效指标 | D142: 资金及时率 | F142: 40 | H142: % | J142: ≥ | L142: 90 | M142: 否
B143: 效益指标 | C143: 社会效益指标 | D143: 敬老院管理合格率 | F143: 40 | H143: % | J143: ≥ | L143: 80 | M143: 否
B144: 满意度指标 | C144: 服务对象满意度指标 | D144: 群众满意率 | F144: 10 | H144: % | J144: ≥ | L144: 80 | M144: 否
A145: 2023年项目支出绩效目标表
A146: 编制单位： | B146: 417001-重庆市綦江区扶欢镇人民政府（本级） | K146: 单位：万元
A147: 项目名称 | B147: 50011023T000003395096-社会服务-服务群众专项经费 | G147: 业务主管部门 | I147: 重庆市綦江区扶欢镇人民政府
A148: 预算执行率权重 | B148: 10 | G148: 项目分类 | I148: 一般性项目
A149: 当年预算（万元) | B149: 35.00 | G149: 本级安排（万元) | I149: 35.00
G150: 上级补助（万元)
A151: 项目概述 | B151: 服务群众
A152: 立项依据 | B152: 年初预算
A153: 当年绩效目标 | B153: 保障2023年服务群众专项经费
A154: 绩效指标 | B154: 一级指标 | C154: 二级指标 | D154: 三级指标 | F154: 指标权重 | H154: 计量单位 | J154: 指标性质 | L154: 指标值 | M154: 是否核心指标
B155: 效益指标 | C155: 社会效益指标 | D155: 群众事项合格率 | F155: 40 | H155: % | J155: ≥ | L155: 80 | M155: 否
B156: 产出指标 | C156: 时效指标 | D156: 资金及时率 | F156: 40 | H156: % | J156: ≥ | L156: 90 | M156: 否
B157: 满意度指标 | C157: 服务对象满意度指标 | D157: 群众满意度 | F157: 10 | H157: % | J157: ≥ | L157: 80 | M157: 否
A158: 2023年项目支出绩效目标表
A159: 编制单位： | B159: 417001-重庆市綦江区扶欢镇人民政府（本级） | K159: 单位：万元
A160: 项目名称 | B160: 50011023T000003395140-社会服务-本土人才 | G160: 业务主管部门 | I160: 重庆市綦江区扶欢镇人民政府
A161: 预算执行率权重 | B161: 10 | G161: 项目分类 | I161: 一般性项目
A162: 当年预算（万元) | B162: 54.02 | G162: 本级安排（万元) | I162: 54.02
G163: 上级补助（万元)
A164: 项目概述 | B164: 本土人才
A165: 立项依据 | B165: 年初预算
A166: 当年绩效目标 | B166: 完成本土人才工作
A167: 绩效指标 | B167: 一级指标 | C167: 二级指标 | D167: 三级指标 | F167: 指标权重 | H167: 计量单位 | J167: 指标性质 | L167: 指标值 | M167: 是否核心指标
B168: 效益指标 | C168: 社会效益指标 | D168: 本土人才参与率 | F168: 40 | H168: % | J168: ≥ | L168: 90 | M168: 否
B169: 满意度指标 | C169: 服务对象满意度指标 | D169: 群众满意率 | F169: 10 | H169: % | J169: ≥ | L169: 80 | M169: 否
B170: 产出指标 | C170: 时效指标 | D170: 资金及时率 | F170: 40 | H170: % | J170: ≥ | L170: 90 | M170: 否
A171: 2023年项目支出绩效目标表
A172: 编制单位： | B172: 417001-重庆市綦江区扶欢镇人民政府（本级） | K172: 单位：万元
A173: 项目名称 | B173: 50011023T000003395150-社会服务-安全监管和社会治理经费 | G173: 业务主管部门 | I173: 重庆市綦江区扶欢镇人民政府
A174: 预算执行率权重 | B174: 10 | G174: 项目分类 | I174: 一般性项目
A175: 当年预算（万元) | B175: 60.23 | G175: 本级安排（万元) | I175: 60.23
G176: 上级补助（万元)
A177: 项目概述 | B177: 综治社工、专职网格员、精神病人、信访维稳、安全监管、渝事好商量
A178: 立项依据 | B178: 年初预算
A179: 当年绩效目标 | B179: 完成安全监管和社会治理工作
A180: 绩效指标 | B180: 一级指标 | C180: 二级指标 | D180: 三级指标 | F180: 指标权重 | H180: 计量单位 | J180: 指标性质 | L180: 指标值 | M180: 是否核心指标
B181: 产出指标 | C181: 时效指标 | D181: 资金及时率 | F181: 40 | H181: % | J181: ≥ | L181: 90 | M181: 否
B182: 效益指标 | C182: 社会效益指标 | D182: 社会安全率 | F182: 40 | H182: % | J182: ≥ | L182: 80 | M182: 否
B183: 满意度指标 | C183: 服务对象满意度指标 | D183: 群众满意率 | F183: 10 | H183: % | J183: ≥ | L183: 80 | M183: 否
A184: 2023年项目支出绩效目标表
A185: 编制单位： | B185: 417001-重庆市綦江区扶欢镇人民政府（本级） | K185: 单位：万元
A186: 项目名称 | B186: 50011023T000003395159-城市管理-场镇清扫保洁 | G186: 业务主管部门 | I186: 重庆市綦江区扶欢镇人民政府
A187: 预算执行率权重 | B187: 10 | G187: 项目分类 | I187: 一般性项目
A188: 当年预算（万元) | B188: 96.24 | G188: 本级安排（万元) | I188: 96.24
G189: 上级补助（万元)
A190: 项目概述 | B190: 场镇清扫保洁
A191: 立项依据 | B191: 年初预算
A192: 当年绩效目标 | B192: 完成2023年场镇清扫保洁任务
A193: 绩效指标 | B193: 一级指标 | C193: 二级指标 | D193: 三级指标 | F193: 指标权重 | H193: 计量单位 | J193: 指标性质 | L193: 指标值 | M193: 是否核心指标
B194: 满意度指标 | C194: 服务对象满意度指标 | D194: 群众满意度 | F194: 10 | H194: % | J194: ≥ | L194: 80 | M194: 否
B195: 效益指标 | C195: 社会效益指标 | D195: 场镇清洁覆盖率 | F195: 40 | H195: % | J195: ≥ | L195: 80 | M195: 否
B196: 产出指标 | C196: 时效指标 | D196: 资金及时率 | F196: 40 | H196: % | J196: ≥ | L196: 90 | M196: 否
